fUST/lending_fUST_20241025
["ID","MTS","AMOUNT","RATE_DAILY","PERIOD"]
[340802744,1729854644835,-602.5,0.00013972,2]
[340802745,1729854644844,-699.32,0.00013972,2]
[340802746,1729854644854,-500.0,0.00013972,2]
[340802747,1729854644867,-1252.23,0.00013972,2]
[340802748,1729854644877,-151.0,0.00013972,2]
[340802749,1729854644887,-907.17,0.00013972,2]
[340802750,1729854644898,-500.0,0.00013972,2]
[340802751,1729854644908,-609.87,0.00013972,2]
[340802752,1729854644918,-2324.53,0.00013972,2]
[340802753,1729854644930,-500.0,0.00013972,2]
[340802754,1729854644941,-500.0,0.00013972,2]
[340802755,1729854644951,-1737.65136784,0.00013972,2]
[340802756,1729854645361,-504.46863216,0.00013972,2]
[340802757,1729854645371,-2049.61,0.00013972,2]
[340802758,1729854645382,-978.27,0.00013972,2]
[340802759,1729854645392,-702.46,0.00013972,2]
[340802760,1729854645403,-500.0,0.00013972,2]
[340802761,1729854645414,-602.73,0.00013972,2]
[340802762,1729854645424,-500.0,0.00013972,2]
[340802763,1729854645435,-1115.34,0.00013972,2]
[340802764,1729854645445,-969.68,0.00013972,2]
[340802765,1729854645455,-635.25,0.00013972,2]
[340802766,1729854645466,-690.37,0.00013972,2]
[340802767,1729854645476,-611.98,0.00013972,2]
[340802768,1729854645487,-500.0,0.00013972,2]
[340802769,1729854645497,-500.0,0.00013972,2]
[340802770,1729854645507,-1183.26,0.00013972,2]
[340802771,1729854645518,-922.95,0.00013972,2]
[340802772,1729854645528,-872.13,0.00013972,2]
[340802773,1729854645539,-653.47,0.00013972,2]
[340802774,1729854645550,-1201.81,0.00013972,2]
[340802775,1729854645561,-864.26,0.00013972,2]
[340802776,1729854645571,-1198.4,0.00013972,2]
[340802777,1729854645584,-500.0,0.00013972,2]
[340802778,1729854645598,-1317.33,0.00013972,2]
[340802779,1729854645608,-583.2889796,0.00013972,2]
[340802780,1729854645619,-500.0,0.00013972,2]
[340802781,1729854645631,-1234.72,0.00013972,2]
[340802782,1729854645642,-763.83,0.00013972,2]
[340802783,1729854645654,-500.0,0.00013972,2]
[340802784,1729854645666,-500.0,0.00013972,2]
[340802785,1729854645677,-500.0,0.00013972,2]
[340802786,1729854645687,-1184.92,0.00013972,2]
[340802787,1729854645697,-500.0,0.00013972,2]
[340802788,1729854645707,-763.86,0.00013972,2]
[340802789,1729854645720,-637.09,0.00013972,2]
[340802790,1729854645731,-555.83,0.00013972,2]
[340802791,1729854645741,-500.0,0.00013972,2]
[340802792,1729854645751,-2159.18,0.00013972,2]
[340802793,1729854645761,-500.0,0.00013972,2]
[340802794,1729854645771,-500.0,0.00013972,2]
[340802795,1729854645782,-638.59286731,0.00013972,2]
[340802796,1729854645797,-500.0,0.00013972,2]
[340802797,1729854645807,-536.39,0.00013972,2]
[340802798,1729854645817,-580.57,0.00013972,2]
[340802799,1729854645831,-500.0,0.00013972,2]
[340802800,1729854645842,-764.27,0.00013972,2]
[340802801,1729854645853,-1916.75,0.00013972,2]
[340802802,1729854645863,-154.24189729,0.00013972,2]
[340802803,1729854645873,-500.0,0.00013972,2]
[340802804,1729854645883,-484.73331023,0.00013972,2]
[340802805,1729854645893,-682.81,0.00013972,2]
[340802806,1729854645903,-677.78,0.00013972,2]
[340802807,1729854645914,-1087.44,0.00013972,2]
[340802808,1729854645923,-500.0,0.00013972,2]
[340802810,1729854645933,-836.46,0.00013972,2]
[340802811,1729854645943,-1172.51,0.00013972,2]
[340802812,1729854645953,-500.0,0.00013972,2]
[340802813,1729854645962,-826.77,0.00013972,2]
[340802815,1729854645972,-500.0,0.00013972,2]
[340802816,1729854645983,-753.99,0.00013972,2]
[340802817,1729854645993,-500.0,0.00013972,2]
[340802818,1729854646003,-500.0,0.00013972,2]
[340802819,1729854646013,-562.12,0.00013972,2]
[340802820,1729854646022,-730.63,0.00013972,2]
[340802821,1729854646032,-962.03,0.00013972,2]
[340802822,1729854646042,-803.32,0.00013972,2]
[340802823,1729854646052,-256.15088994,0.00013972,2]
[340802824,1729854646062,-1036.67,0.00013972,2]
[340802825,1729854646073,-944.7,0.00013972,2]
[340802826,1729854646083,-500.0,0.00013972,2]
[340802827,1729854646094,-500.0,0.00013972,2]
[340802829,1729854646104,-615.81,0.00013972,2]
[340802831,1729854646114,-796.04,0.00013972,2]
[340802833,1729854646124,-1861.04,0.00013972,2]
[340802834,1729854646134,-649.78,0.00013972,2]
[340802835,1729854646144,-634.89,0.00013972,2]
[340802836,1729854646153,-500.0,0.00013972,2]
[340802837,1729854646163,-576.06,0.00013972,2]
[340802838,1729854646174,-210.22841701,0.00013972,2]
[340802839,1729854646183,-724.64,0.00013972,2]
[340802840,1729854646193,-500.0,0.00013972,2]
[340802841,1729854646204,-302.919752,0.00013972,2]
[340802842,1729854646214,-302.919752,0.00013972,2]
[340802843,1729854646224,-1495.67,0.00013972,2]
[340802844,1729854646233,-302.919752,0.00013972,2]
[340802845,1729854646243,-302.919752,0.00013972,2]
[340802846,1729854646253,-913.17,0.00013972,2]
[340802847,1729854646262,-1008.44,0.00013972,2]
[340802849,1729854646272,-500.0,0.00013972,2]
[340802851,1729854646282,-500.0,0.00013972,2]
[340802853,1729854646292,-1303.33,0.00013972,2]
[340802854,1729854646301,-604.88,0.00013972,2]
[340802855,1729854646311,-528.19,0.00013972,2]
[340802856,1729854646322,-1087.74,0.00013972,2]
[340802857,1729854646332,-500.0,0.00013972,2]
[340802858,1729854646342,-500.0,0.00013972,2]
[340802859,1729854646352,-25171.05,0.00013972,2]
[340802860,1729854646361,-500.0,0.00013972,2]
[340802861,1729854646371,-4188.71,0.00013972,2]
[340802862,1729854646381,-1289.38,0.00013972,2]
[340802863,1729854646390,-500.0,0.00013972,2]
[340802864,1729854646400,-500.0,0.00013972,2]
[340802865,1729854646409,-500.0,0.00013972,2]
[340802866,1729854646419,-4365.29,0.00013972,2]
[340802868,1729854646428,-1190.61,0.00013972,2]
[340802870,1729854646439,-1054.89,0.00013972,2]
[340802872,1729854646448,-1169.74,0.00013972,2]
[340802874,1729854646457,-4055.56,0.00013972,2]
[340802876,1729854646467,-500.0,0.00013972,2]
[340802877,1729854646477,-521.67965146,0.00013972,2]
[340802878,1729854646487,-500.0,0.00013972,2]
[340802879,1729854646497,-1689.41,0.00013972,2]
[340802880,1729854646507,-564.92,0.00013972,2]
[340802881,1729854646517,-1672.77,0.00013972,2]
[340802882,1729854646528,-625.69,0.00013972,2]
[340802883,1729854646538,-500.0,0.00013972,2]
[340802884,1729854646548,-500.0,0.00013972,2]
[340802885,1729854646558,-1038.79,0.00013972,2]
[340802886,1729854646569,-500.0,0.00013972,2]
[340802887,1729854646579,-508.51,0.00013972,2]
[340802888,1729854646591,-761.97,0.00013972,2]
[340802889,1729854646824,-151.0,0.00013972,2]
[340802890,1729854646834,-151.0,0.00013972,2]
[340802891,1729854646844,-500.0,0.00013972,2]
[340802892,1729854646855,-500.0,0.00013972,2]
[340802893,1729854646865,-152.75641748,0.00013972,2]
[340802894,1729854646875,-6322.09,0.00013972,2]
[340802895,1729854646885,-151.0,0.00013972,2]
[340802896,1729854646894,-1062.89,0.00013972,2]
[340802897,1729854646904,-1018.37,0.00013972,2]
[340802898,1729854646914,-500.0,0.00013972,2]
[340802899,1729854646924,-500.0,0.00013972,2]
[340802900,1729854646933,-500.0,0.00013972,2]
[340802901,1729854646943,-509.17,0.00013972,2]
[340802902,1729854646953,-500.0,0.00013972,2]
[340802903,1729854646962,-2585.22,0.00013972,2]
[340802904,1729854646973,-12496.51,0.00013972,2]
[340802905,1729854646982,-796.74,0.00013972,2]
[340802906,1729854646992,-707.97,0.00013972,2]
[340802907,1729854647003,-500.0,0.00013972,2]
[340802908,1729854647013,-889.98788836,0.00013972,2]
[340802909,1729854647033,-280.08211164,0.00013972,2]
[340802910,1729854647044,-925.9,0.00013972,2]
[340802911,1729854647055,-98.41788836,0.00013972,2]
[340802917,1729855668710,-157.894737,0.00012555,2]
[340802918,1729855668737,-157.894737,0.00012591,2]
[340802919,1729855668762,-157.894737,0.00012627,2]
[340802920,1729855668788,-157.894737,0.00012664,2]
[340802921,1729855668815,-157.894737,0.000127,2]
[340802922,1729855668841,-157.894737,0.00012736,2]
[340802923,1729855668869,-157.894737,0.00012773,2]
[340802924,1729855668895,-157.894737,0.00012809,2]
[340802925,1729855668922,-157.894737,0.00012845,2]
[340802926,1729855668948,-157.894737,0.00012882,2]
[340802927,1729855668974,-157.894737,0.00012918,2]
[340802928,1729855668999,-157.894737,0.00012954,2]
[340802929,1729855669025,-157.894737,0.00012991,2]
[340802930,1729855669052,-157.894737,0.00013027,2]
[340802931,1729855669077,-157.894737,0.00013064,2]
[340802932,1729855669109,-157.894737,0.000131,2]
[340802933,1729855669138,-157.894737,0.00013136,2]
[340802934,1729855669167,-101.789471,0.00013173,2]
[340802937,1729855722517,18803.46474308,0.0001,2]
[340802948,1729855832585,-56.105266,0.00013173,2]
[340802949,1729855832596,-157.894737,0.00013209,2]
[340802950,1729855832606,-153.0,0.00013233,2]
[340802951,1729855832617,-2396.0,0.00013428,2]
[340802952,1729855832627,-3329.96117573,0.00013588,2]
[340802953,1729855832639,-300.0,0.00013687,2]
[340802954,1729855832649,-198.39067274,0.00013688,2]
[340802955,1729855832659,-15905.91761679,0.00013688,2]
[340802972,1729855838785,-488.38253191,0.00013688,2]
[340802994,1729855838986,-358.4793029,0.00013688,2]
[340803175,1729855840739,-78091.91529296,0.00013688,2]
[340803180,1729855840856,-5419.77991344,0.00013688,2]
[340803182,1729855840866,-1261.4906347,0.00013688,2]
[340803185,1729855840876,-500.0,0.00013698,2]
[340803187,1729855840885,-606.28155889,0.00013698,2]
[340803189,1729855840895,-500.0,0.00013698,2]
[340803191,1729855840904,-500.0,0.00013698,2]
[340803194,1729855840914,-580.21,0.00013698,2]
[340803196,1729855840924,-873.83,0.00013698,2]
[340803199,1729855840935,-673.49,0.00013698,2]
[340803201,1729855840944,-500.0,0.00013698,2]
[340803203,1729855840955,-674.86,0.00013698,2]
[340803204,1729855840967,-587.57,0.00013698,2]
[340803205,1729855840977,-500.0,0.00013698,2]
[340803206,1729855840986,-500.0,0.00013698,2]
[340803207,1729855840996,-579.42,0.00013698,2]
[340803208,1729855841006,-778.2,0.00013698,2]
[340803209,1729855841015,-500.0,0.00013698,2]
[340803210,1729855841026,-665.05,0.00013698,2]
[340803211,1729855841036,-591.41041058,0.00013698,2]
[340803212,1729855841046,-1084.66,0.00013698,2]
[340803213,1729855841055,-605.09106281,0.00013698,2]
[340803214,1729855841066,-792.24,0.00013698,2]
[340803215,1729855841076,-500.0,0.00013698,2]
[340803217,1729855841085,-500.0,0.00013698,2]
[340803219,1729855841095,-787.52,0.00013698,2]
[340803221,1729855841105,-500.0,0.00013698,2]
[340803223,1729855841114,-500.0,0.00013698,2]
[340803225,1729855841124,-500.0,0.00013698,2]
[340803227,1729855841133,-216.90052595,0.00013698,2]
[340803228,1729855841143,-500.0,0.00013698,2]
[340803229,1729855841156,-500.0,0.00013698,2]
[340803230,1729855841165,-500.0,0.00013698,2]
[340803232,1729855841176,-500.0,0.00013698,2]
[340803234,1729855841186,-500.0,0.00013698,2]
[340803235,1729855841196,-500.0,0.00013698,2]
[340803237,1729855841205,-498.95355267,0.00013698,2]
[340803239,1729855841214,-500.0,0.00013698,2]
[340803241,1729855841226,-500.0,0.00013698,2]
[340803242,1729855841235,-500.0,0.00013698,2]
[340803245,1729855841245,-500.0,0.00013698,2]
[340803246,1729855841255,-500.0,0.00013698,2]
[340803248,1729855841264,-500.0,0.00013698,2]
[340803251,1729855841276,-500.0,0.00013698,2]
[340803253,1729855841285,-500.0,0.00013698,2]
[340803255,1729855841294,-500.0,0.00013698,2]
[340803257,1729855841304,-500.0,0.00013698,2]
[340803258,1729855841314,-736.35,0.00013698,2]
[340803259,1729855841325,-651.62,0.00013698,2]
[340803260,1729855841335,-500.0,0.00013698,2]
[340803261,1729855841345,-500.0,0.00013698,2]
[340803262,1729855841357,-704.04,0.00013698,2]
[340803263,1729855841368,-926.96,0.00013698,2]
[340803264,1729855841378,-515.28,0.00013698,2]
[340803265,1729855841387,-950.28,0.00013698,2]
[340803266,1729855841397,-500.0,0.00013698,2]
[340803267,1729855841406,-243.04650807,0.00013698,2]
[340803268,1729855841416,-249.34768442,0.00013698,2]
[340803269,1729855841425,-500.0,0.00013698,2]
[340803270,1729855841434,-202.54893885,0.00013698,2]
[340803271,1729855841444,-500.0,0.00013698,2]
[340803272,1729855841453,-500.0,0.00013698,2]
[340803273,1729855841463,-620.07,0.00013698,2]
[340803274,1729855841473,-639.66,0.00013698,2]
[340803275,1729855841484,-564.5,0.00013698,2]
[340803276,1729855841493,-173.09310964,0.00013698,2]
[340803277,1729855841504,-447.94474158,0.00013698,2]
[340803278,1729855841514,-581.99,0.00013698,2]
[340803279,1729855841523,-595.63,0.00013698,2]
[340803280,1729855841534,-500.0,0.00013698,2]
[340803281,1729855841544,-500.0,0.00013698,2]
[340803282,1729855841554,-500.0,0.00013698,2]
[340803283,1729855841566,-1022.39,0.00013698,2]
[340803284,1729855841575,-500.0,0.00013698,2]
[340803285,1729855841585,-1147.88,0.00013698,2]
[340803286,1729855841594,-554.47,0.00013698,2]
[340803287,1729855841604,-2130.82,0.00013698,2]
[340803288,1729855841613,-1878.81,0.00013698,2]
[340803289,1729855841622,-888.87,0.00013698,2]
[340803290,1729855841631,-500.0,0.00013698,2]
[340803291,1729855841641,-2055.28,0.00013698,2]
[340803292,1729855841650,-799.45,0.00013698,2]
[340803293,1729855841659,-896.75,0.00013698,2]
[340803294,1729855841669,-500.0,0.00013698,2]
[340803295,1729855841679,-500.0,0.00013698,2]
[340803296,1729855841688,-1072.26,0.00013698,2]
[340803297,1729855841916,-1098.54,0.00013698,2]
[340803298,1729855841925,-706.15,0.00013698,2]
[340803299,1729855841935,-560.98,0.00013698,2]
[340803300,1729855841945,-573.55,0.00013698,2]
[340803301,1729855841954,-582.31,0.00013698,2]
[340803302,1729855841963,-952.22,0.00013698,2]
[340803303,1729855841973,-1101.66,0.00013698,2]
[340803304,1729855841983,-846.04,0.00013698,2]
[340803305,1729855841992,-599.02,0.00013698,2]
[340803306,1729855842002,-500.0,0.00013698,2]
[340803307,1729855842011,-500.0,0.00013698,2]
[340803308,1729855842020,-1207.55,0.00013698,2]
[340803309,1729855842030,-500.0,0.00013698,2]
[340803310,1729855842040,-1086.17,0.00013698,2]
[340803311,1729855842050,-730.34,0.00013698,2]
[340803312,1729855842059,-933.51,0.00013698,2]
[340803313,1729855842070,-700.18,0.00013698,2]
[340803314,1729855842080,-509.51,0.00013698,2]
[340803315,1729855842089,-500.0,0.00013698,2]
[340803316,1729855842098,-1131.82,0.00013698,2]
[340803317,1729855842108,-648.97,0.00013698,2]
[340803318,1729855842117,-532.19,0.00013698,2]
[340803319,1729855842126,-500.0,0.00013698,2]
[340803320,1729855842136,-418.80059764,0.00013698,2]
[340803321,1729855842148,-700.21,0.00013698,2]
[340803322,1729855842158,-691.16,0.00013698,2]
[340803323,1729855842167,-677.47,0.00013698,2]
[340803324,1729855842176,-500.0,0.00013698,2]
[340803325,1729855842186,-625.91,0.00013698,2]
[340803326,1729855842195,-500.0,0.00013698,2]
[340803327,1729855842204,-1979.25,0.00013698,2]
[340803328,1729855842215,-500.0,0.00013698,2]
[340803329,1729855842225,-500.0,0.00013698,2]
[340803330,1729855842235,-500.0,0.00013698,2]
[340803331,1729855842246,-1757.02,0.00013698,2]
[340803332,1729855842256,-726.29,0.00013698,2]
[340803333,1729855842265,-736.38,0.00013698,2]
[340803334,1729855842274,-766.76,0.00013698,2]
[340803335,1729855842295,-996.82,0.00013698,2]
[340803336,1729855842306,-500.0,0.00013698,2]
[340803337,1729855842316,-1074.8,0.00013698,2]
[340803338,1729855842326,-594.69,0.00013698,2]
[340803339,1729855842336,-729.71,0.00013698,2]
[340803340,1729855842345,-500.0,0.00013698,2]
[340803341,1729855842355,-865.98,0.00013698,2]
[340803342,1729855842365,-601.4,0.00013698,2]
[340803343,1729855842375,-500.0,0.00013698,2]
[340803344,1729855842385,-664.26,0.00013698,2]
[340803345,1729855842395,-684.46,0.00013698,2]
[340803346,1729855842404,-500.0,0.00013698,2]
[340803347,1729855842414,-924.4,0.00013698,2]
[340803348,1729855842423,-1705.95,0.00013698,2]
[340803349,1729855842433,-562.46,0.00013698,2]
[340803350,1729855842442,-1194.72,0.00013698,2]
[340803351,1729855842451,-528.06,0.00013698,2]
[340803352,1729855842461,-500.0,0.00013698,2]
[340803353,1729855842470,-1127.73,0.00013698,2]
[340803354,1729855842481,-698.54,0.00013698,2]
[340803355,1729855842491,-837.07,0.00013698,2]
[340803356,1729855842500,-500.0,0.00013698,2]
[340803357,1729855842510,-500.0,0.00013698,2]
[340803358,1729855842523,-1181.93,0.00013698,2]
[340803359,1729855842536,-868.83,0.00013698,2]
[340803360,1729855842547,-1701.19,0.00013698,2]
[340803361,1729855842558,-997.09,0.00013698,2]
[340803362,1729855842568,-500.0,0.00013698,2]
[340803363,1729855842577,-500.0,0.00013698,2]
[340803364,1729855842587,-500.0,0.00013698,2]
[340803365,1729855842596,-1371.03,0.00013698,2]
[340803366,1729855842606,-500.0,0.00013698,2]
[340803367,1729855842615,-3839.65,0.00013698,2]
[340803368,1729855842624,-500.0,0.00013698,2]
[340803369,1729855842635,-500.0,0.00013698,2]
[340803370,1729855842645,-500.0,0.00013698,2]
[340803371,1729855842657,-516.27,0.00013698,2]
[340803372,1729855842667,-500.0,0.00013698,2]
[340803373,1729855842676,-966.98,0.00013698,2]
[340803374,1729855842686,-500.0,0.00013698,2]
[340803375,1729855842695,-23073.46,0.00013698,2]
[340803376,1729855842705,-1548.62,0.00013698,2]
[340803377,1729855842714,-500.0,0.00013698,2]
[340803378,1729855842724,-1091.4,0.00013698,2]
[340803379,1729855842734,-562.08,0.00013698,2]
[340803380,1729855842745,-500.0,0.00013698,2]
[340803381,1729855842755,-500.0,0.00013698,2]
[340803382,1729855842766,-830.57,0.00013698,2]
[340803383,1729855842776,-4001.51,0.00013698,2]
[340803384,1729855842785,-500.0,0.00013698,2]
[340803385,1729855842795,-500.0,0.00013698,2]
[340803386,1729855842804,-3717.6,0.00013698,2]
[340803387,1729855842814,-500.0,0.00013698,2]
[340803388,1729855842823,-553.84,0.00013698,2]
[340803389,1729855842833,-1587.94,0.00013698,2]
[340803390,1729855842842,-698.47,0.00013698,2]
[340803391,1729855842852,-500.0,0.00013698,2]
[340803392,1729855842863,-5795.25,0.00013698,2]
[340803393,1729855842872,-500.0,0.00013698,2]
[340803394,1729855842882,-500.0,0.00013698,2]
[340803395,1729855842896,-500.0,0.00013698,2]
[340803396,1729855842907,-500.0,0.00013698,2]
[340803397,1729855842920,-500.0,0.00013698,2]
[340803398,1729855842930,-500.0,0.00013698,2]
[340803399,1729855842940,-11455.13,0.00013698,2]
[340803400,1729855842952,-500.0,0.00013698,2]
[340803401,1729855842964,-673.01,0.00013698,2]
[340803402,1729855842974,-401.58211164,0.00013698,2]
[340803403,1729855842983,-974.32,0.00013698,2]
[340803404,1729855842993,-500.0,0.00013698,2]
[340803405,1729855843003,-479.39909154,0.00013698,2]
[340803407,1729855843015,-500.0,0.00013698,2]
[340803409,1729855843025,-500.0,0.00013698,2]
[340803410,1729855843036,-4188.74,0.00013698,2]
[340803412,1729855843046,-848.74,0.00013698,2]
[340803413,1729855843058,-1078.09,0.00013698,2]
[340803414,1729855843070,-500.0,0.00013698,2]
[340803415,1729855843079,-500.0,0.00013698,2]
[340803416,1729855843089,-1377.49,0.00013698,2]
[340803417,1729855843099,-2369.78,0.00013698,2]
[340803418,1729855843109,-1272.72,0.00013698,2]
[340803419,1729855843118,-802.98,0.00013698,2]
[340803420,1729855843128,-240.70448827,0.00013698,2]
[340803435,1729855843865,-0.54192076,0.00013698,2]
[340803620,1729857037999,-509.332659,0.00013434,2]
[340803621,1729857038010,-1408.207,0.00013498,2]
[340803622,1729857038021,-2913.71602879,0.00013588,2]
[340803623,1729857038030,-509.332659,0.00013602,2]
[340803624,1729857038040,-300.0,0.00013666,2]
[340803625,1729857038050,-6785.28633546,0.00013667,2]
[340803626,1729857038059,-7499.52531775,0.00013688,2]
[340803653,1729857039899,-52422.06177174,0.00013688,2]
[340803760,1729858231798,-163.502737,0.00012546,2]
[340803761,1729858231808,-163.502737,0.00012584,2]
[340803762,1729858231818,-163.502737,0.00012623,2]
[340803763,1729858231827,-163.502737,0.00012661,2]
[340803764,1729858231837,-163.502737,0.000127,2]
[340803765,1729858231847,-163.502737,0.00012738,2]
[340803766,1729858231856,-163.502737,0.00012777,2]
[340803767,1729858231866,-163.502737,0.00012815,2]
[340803768,1729858231875,-163.502737,0.00012853,2]
[340803769,1729858231884,-163.502737,0.00012892,2]
[340803770,1729858231893,-163.502737,0.0001293,2]
[340803771,1729858231902,-163.502737,0.00012969,2]
[340803772,1729858231912,-163.502737,0.00013007,2]
[340803773,1729858231924,-163.502737,0.00013046,2]
[340803774,1729858231934,-163.502737,0.00013084,2]
[340803775,1729858231943,-163.502737,0.00013123,2]
[340803776,1729858231952,-163.502737,0.00013161,2]
[340803777,1729858231966,-300.0,0.00013199,2]
[340803778,1729858231975,-163.502737,0.000132,2]
[340803779,1729858231985,-6785.28633546,0.00013299,2]
[340803780,1729858231994,-154.4504992,0.00013342,2]
[340803781,1729858232004,-153.0,0.00013342,2]
[340803782,1729858232013,-174.858212,0.00013434,2]
[340803783,1729858232023,-527.0,0.00013498,2]
[340803784,1729858232033,-1151.0,0.00013498,2]
[340803785,1729858232042,-1190.0,0.00013498,2]
[340803786,1729858232051,-2549.5015252,0.00013578,2]
[340803787,1729858232061,-154.41706891,0.00013588,2]
[340803788,1729858232070,-500.0,0.00013673,2]
[340803789,1729858232080,-193.84619392,0.00013688,2]
[340803790,1729858232089,-145074.404439,0.00013688,2]
[340803791,1729858232105,-154760.518688,0.00013688,2]
[340803792,1729858232114,-499.88372807,0.00013698,2]
[340803793,1729858232124,-190.76672511,0.00013698,2]
[340803794,1729858232133,-170.13255565,0.00013698,2]
[340803795,1729858232144,-500.0,0.00013698,2]
[340803796,1729858232154,-174.54337909,0.00013698,2]
[340803797,1729858232163,-341.78425719,0.00013698,2]
[340803798,1729858232173,-376.98729505,0.00013698,2]
[340803799,1729858232183,-244.64441652,0.00013698,2]
[340803800,1729858232194,-151.0,0.00013698,2]
[340803801,1729858232203,-237.795719,0.00013698,2]
[340803802,1729858232216,-151.0,0.00013698,2]
[340803803,1729858232226,-151.0,0.00013698,2]
[340803804,1729858232237,-151.0,0.00013698,2]
[340803805,1729858232246,-151.0,0.00013698,2]
[340803806,1729858232256,-500.0,0.00013698,2]
[340803807,1729858232266,-151.0,0.00013698,2]
[340803808,1729858232276,-151.0,0.00013698,2]
[340803809,1729858232286,-151.0,0.00013698,2]
[340803810,1729858232295,-151.0,0.00013698,2]
[340803811,1729858232306,-569.91,0.00013698,2]
[340803812,1729858232315,-151.0,0.00013698,2]
[340803813,1729858232325,-151.0,0.00013698,2]
[340803814,1729858232334,-162.283725,0.00013698,2]
[340803815,1729858232344,-500.0,0.00013698,2]
[340803816,1729858232354,-576.34,0.00013698,2]
[340803817,1729858232364,-655.94,0.00013698,2]
[340803818,1729858232374,-151.0,0.00013698,2]
[340803819,1729858232384,-1080.75,0.00013698,2]
[340803820,1729858232393,-500.0,0.00013698,2]
[340803821,1729858232403,-539.02,0.00013698,2]
[340803822,1729858232412,-151.0,0.00013698,2]
[340803823,1729858232422,-151.0,0.00013698,2]
[340803824,1729858232431,-151.0,0.00013698,2]
[340803825,1729858232443,-151.0,0.00013698,2]
[340803826,1729858232457,-151.0,0.00013698,2]
[340803827,1729858232470,-500.0,0.00013698,2]
[340803828,1729858232482,-500.0,0.00013698,2]
[340803829,1729858232492,-500.0,0.00013698,2]
[340803830,1729858232504,-500.0,0.00013698,2]
[340803831,1729858232515,-151.0,0.00013698,2]
[340803832,1729858232526,-151.0,0.00013698,2]
[340803833,1729858232536,-151.0,0.00013698,2]
[340803834,1729858232546,-151.34511,0.00013698,2]
[340803835,1729858232556,-500.0,0.00013698,2]
[340803836,1729858232565,-500.0,0.00013698,2]
[340803837,1729858232585,-538.66,0.00013698,2]
[340803838,1729858232595,-151.0,0.00013698,2]
[340803839,1729858232605,-217.00791,0.00013698,2]
[340803840,1729858232614,-500.0,0.00013698,2]
[340803841,1729858232624,-500.0,0.00013698,2]
[340803842,1729858232634,-530.76,0.00013698,2]
[340803843,1729858232645,-1521.78,0.00013698,2]
[340803844,1729858232655,-500.0,0.00013698,2]
[340803845,1729858232664,-500.0,0.00013698,2]
[340803846,1729858232674,-500.0,0.00013698,2]
[340803847,1729858232684,-500.0,0.00013698,2]
[340803848,1729858232695,-1219.69,0.00013698,2]
[340803849,1729858232704,-151.0,0.00013698,2]
[340803850,1729858232718,-151.0,0.00013698,2]
[340803851,1729858232727,-500.0,0.00013698,2]
[340803852,1729858232737,-769.53,0.00013698,2]
[340803853,1729858232747,-649.01041378,0.00013698,2]
[340803854,1729858232762,-500.0,0.00013698,2]
[340803855,1729858232779,-500.0,0.00013698,2]
[340803856,1729858232789,-500.0,0.00013698,2]
[340803857,1729858232805,-500.0,0.00013698,2]
[340803858,1729858232815,-329.191186,0.00013698,2]
[340803859,1729858232825,-329.191186,0.00013698,2]